fUST/lending_fUST_20240115
["ID","MTS","AMOUNT","RATE_DAILY","PERIOD"]
[311633215,1705273843934,-500.0,0.00027945,2]
[311633216,1705273843944,-406.53673529,0.00027945,2]
[311633217,1705273843953,-500.0,0.00027945,2]
[311633218,1705273843962,-500.0,0.00027945,2]
[311633219,1705273843972,-1181.82,0.00027945,2]
[311633220,1705273843981,-1071.34,0.00027945,2]
[311633221,1705273843994,-2069.79,0.00027945,2]
[311633222,1705273844004,-500.0,0.00027945,2]
[311633223,1705273844013,-516.22,0.00027945,2]
[311633224,1705273844022,-500.0,0.00027945,2]
[311633225,1705273844031,-500.0,0.00027945,2]
[311633226,1705273844040,-274.48615119,0.00027945,2]
[311633227,1705273844049,-741.73,0.00027945,2]
[311633228,1705273844058,-500.0,0.00027945,2]
[311633229,1705273844067,-595.24,0.00027945,2]
[311633230,1705273844076,-500.0,0.00027945,2]
[311633231,1705273844086,-1228.31,0.00027945,2]
[311633232,1705273844095,-655.83,0.00027945,2]
[311633233,1705273844104,-500.0,0.00027945,2]
[311633234,1705273844113,-882.38,0.00027945,2]
[311633235,1705273844126,-921.04,0.00027945,2]
[311633236,1705273844135,-500.0,0.00027945,2]
[311633237,1705273844144,-646.95,0.00027945,2]
[311633238,1705273844154,-500.0,0.00027945,2]
[311633239,1705273844163,-500.0,0.00027945,2]
[311633240,1705273844172,-500.0,0.00027945,2]
[311633241,1705273844181,-153.90530155,0.00027945,2]
[311633242,1705273844191,-641.89,0.00027945,2]
[311633243,1705273844200,-500.0,0.00027945,2]
[311633244,1705273844209,-500.0,0.00027945,2]
[311633245,1705273844219,-500.0,0.00027945,2]
[311633246,1705273844228,-500.0,0.00027945,2]
[311633247,1705273844237,-2152.1,0.00027945,2]
[311633248,1705273844252,-500.0,0.00027945,2]
[311633249,1705273844261,-312.89571389,0.00027945,2]
[311633250,1705273844270,-500.0,0.00027945,2]
[311633251,1705273844280,-601.67,0.00027945,2]
[311633252,1705273844289,-500.0,0.00027945,2]
[311633253,1705273844298,-500.0,0.00027945,2]
[311633254,1705273844307,-1457.05,0.00027945,2]
[311633255,1705273844316,-1205.55,0.00027945,2]
[311633256,1705273844327,-500.0,0.00027945,2]
[311633257,1705273844336,-500.0,0.00027945,2]
[311633258,1705273844345,-617.05,0.00027945,2]
[311633259,1705273844362,-1260.8,0.00027945,2]
[311633260,1705273844371,-774.21,0.00027945,2]
[311633261,1705273844381,-2445.63,0.00027945,2]
[311633262,1705273844389,-5888.37,0.00027945,2]
[311633263,1705273844399,-6560.83,0.00027945,2]
[311633264,1705273844408,-500.0,0.00027945,2]
[311633265,1705273844417,-500.0,0.00027945,2]
[311633266,1705273844426,-529.01792933,0.00027945,2]
[311633267,1705273844434,-500.0,0.00027945,2]
[311633268,1705273844445,-3365.49,0.00027945,2]
[311633269,1705273844454,-500.0,0.00027945,2]
[311633270,1705273844463,-500.0,0.00027945,2]
[311633271,1705273844472,-23437.25,0.00027945,2]
[311633272,1705273844481,-500.0,0.00027945,2]
[311633273,1705273844494,-500.0,0.00027945,2]
[311633274,1705273844504,-500.0,0.00027945,2]
[311633275,1705273844513,-500.0,0.00027945,2]
[311633276,1705273844522,-5069.34,0.00027945,2]
[311633277,1705273844531,-500.0,0.00027945,2]
[311633278,1705273844540,-715.5,0.00027945,2]
[311633279,1705273844549,-502.24841496,0.00027945,2]
[311633280,1705273844558,-500.0,0.00027945,2]
[311633281,1705273844567,-2024.58,0.00027945,2]
[311633282,1705273844576,-15264.76,0.00027945,2]
[311633283,1705273844585,-500.0,0.00027945,2]
[311633284,1705273844595,-2565.85,0.00027945,2]
[311633285,1705273844605,-500.0,0.00027945,2]
[311633286,1705273844615,-500.0,0.00027945,2]
[311633287,1705273844625,-500.0,0.00027945,2]
[311633288,1705273844634,-6559.32,0.00027945,2]
[311633289,1705273844643,-500.0,0.00027945,2]
[311633290,1705273844652,-1133.15,0.00027945,2]
[311633291,1705273844662,-500.0,0.00027945,2]
[311633292,1705273844671,-1104.57,0.00027945,2]
[311633293,1705273844681,-790.19,0.00027945,2]
[311633294,1705273844690,-586.91,0.00027945,2]
[311633295,1705273844699,-1376.52,0.00027945,2]
[311633296,1705273844708,-517.09868122,0.00027945,2]
[311633297,1705273844717,-500.0,0.00027945,2]
[311633298,1705273844726,-649.62048266,0.00027945,2]
[311633299,1705273844734,-778.85,0.00027945,2]
[311633300,1705273844748,-1565.88,0.00027945,2]
[311633301,1705273844757,-2041.102221,0.00028,2]
[311633302,1705273844766,-153.79240338,0.00028024,2]
[311633303,1705273844775,-153.79240338,0.00028068,2]
[311633304,1705273844785,-3010.02580957,0.000282,14]
[311633305,1705273844794,-242.67449373,0.00028218,2]
[311633306,1705273844803,-762.67,0.00028218,2]
[311633307,1705273844812,-500.0,0.00028218,2]
[311633308,1705273844821,-530.68198889,0.00028218,4]
[311633309,1705273844830,-496.72617692,0.00028218,4]
[311633310,1705273844839,-500.0,0.00028219,2]
[311633311,1705273844848,-500.0,0.00028219,2]
[311633312,1705273844857,-500.0,0.00028219,2]
[311633313,1705273844866,-500.0,0.00028219,2]
[311633314,1705273844875,-500.0,0.00028219,2]
[311633315,1705273844975,-500.0,0.00028219,2]
[311633316,1705273844985,-500.0,0.00028219,2]
[311633317,1705273844999,-1181.82,0.00028219,2]
[311633318,1705273845008,-1071.34,0.00028219,2]
[311633319,1705273845017,-2069.79,0.00028219,2]
[311633320,1705273845027,-500.0,0.00028219,2]
[311633321,1705273845036,-516.22,0.00028219,2]
[311633322,1705273845045,-500.0,0.00028219,2]
[311633323,1705273845055,-500.0,0.00028219,2]
[311633324,1705273845064,-741.73,0.00028219,2]
[311633325,1705273845074,-500.0,0.00028219,2]
[311633326,1705273845083,-595.24,0.00028219,2]
[311633327,1705273845092,-500.0,0.00028219,2]
[311633328,1705273845102,-1228.31,0.00028219,2]
[311633329,1705273845112,-655.83,0.00028219,2]
[311633330,1705273845121,-500.0,0.00028219,2]
[311633331,1705273845130,-882.38,0.00028219,2]
[311633332,1705273845139,-921.04,0.00028219,2]
[311633333,1705273845149,-500.0,0.00028219,2]
[311633334,1705273845158,-646.95,0.00028219,2]
[311633335,1705273845168,-269.70777392,0.00028219,2]
[311633336,1705273845177,-500.0,0.00028219,2]
[311633337,1705273845186,-500.0,0.00028219,2]
[311633338,1705273845195,-641.89,0.00028219,2]
[311633339,1705273845204,-500.0,0.00028219,2]
[311633340,1705273845214,-500.0,0.00028219,2]
[311633341,1705273845223,-500.0,0.00028219,2]
[311633342,1705273845232,-500.0,0.00028219,2]
[311633343,1705273845241,-2152.1,0.00028219,2]
[311633344,1705273845252,-500.0,0.00028219,2]
[311633345,1705273845262,-500.0,0.00028219,2]
[311633346,1705273845271,-601.67,0.00028219,2]
[311633347,1705273845281,-500.0,0.00028219,2]
[311633348,1705273845290,-500.0,0.00028219,2]
[311633349,1705273845299,-1457.05,0.00028219,2]
[311633350,1705273845308,-1205.55,0.00028219,2]
[311633351,1705273845317,-500.0,0.00028219,2]
[311633352,1705273845326,-500.0,0.00028219,2]
[311633353,1705273845335,-617.05,0.00028219,2]
[311633354,1705273845344,-1260.8,0.00028219,2]
[311633355,1705273845354,-774.21,0.00028219,2]
[311633356,1705273845364,-2445.63,0.00028219,2]
[311633357,1705273845376,-5888.37,0.00028219,2]
[311633358,1705273845385,-6560.83,0.00028219,2]
[311633359,1705273845395,-500.0,0.00028219,2]
[311633360,1705273845404,-500.0,0.00028219,2]
[311633361,1705273845414,-3365.49,0.00028219,2]
[311633362,1705273845424,-500.0,0.00028219,2]
[311633363,1705273845433,-500.0,0.00028219,2]
[311633364,1705273845443,-23437.25,0.00028219,2]
[311633365,1705273845455,-500.0,0.00028219,2]
[311633366,1705273845464,-500.0,0.00028219,2]
[311633367,1705273845474,-500.0,0.00028219,2]
[311633368,1705273845484,-5069.34,0.00028219,2]
[311633369,1705273845498,-500.0,0.00028219,2]
[311633370,1705273845507,-715.5,0.00028219,2]
[311633371,1705273845517,-500.0,0.00028219,2]
[311633372,1705273845526,-2024.58,0.00028219,2]
[311633373,1705273845535,-15264.76,0.00028219,2]
[311633374,1705273845545,-500.0,0.00028219,2]
[311633375,1705273845554,-2565.85,0.00028219,2]
[311633376,1705273845563,-500.0,0.00028219,2]
[311633377,1705273845572,-500.0,0.00028219,2]
[311633378,1705273845582,-41.45533319,0.00028219,2]
[311633379,1705273845938,-500.0,0.00027397,2]
[311633380,1705273845947,-500.0,0.00027397,2]
[311633381,1705273845957,-500.0,0.00027534,2]
[311633382,1705273845966,-500.0,0.00027671,2]
[311633383,1705273845976,-500.0,0.00027671,2]
[311633384,1705273845985,-500.0,0.00027808,2]
[311633385,1705273846000,-500.0,0.00027945,2]
[311633386,1705273846009,-629.07086596,0.00027945,2]
[311633387,1705273846018,-6517.86466681,0.00028219,2]
[311633388,1705273846027,-500.0,0.00028219,2]
[311633389,1705273846037,-1133.15,0.00028219,2]
[311633390,1705273846047,-500.0,0.00028219,2]
[311633391,1705273846056,-1104.57,0.00028219,2]
[311633392,1705273846065,-790.19,0.00028219,2]
[311633393,1705273846075,-586.91,0.00028219,2]
[311633394,1705273846084,-1376.52,0.00028219,2]
[311633395,1705273846093,-500.0,0.00028219,2]
[311633396,1705273846102,-778.85,0.00028219,2]
[311633397,1705273846111,-1565.88,0.00028219,2]
[311633399,1705273846120,-500.0,0.00028219,2]
[311633400,1705273846129,-153.79240338,0.00028373,2]
[311633402,1705273846138,-2000.0,0.000284,2]
[311633404,1705273846147,-2000.0,0.0002841,2]
[311633405,1705273846157,-2000.0,0.0002842,2]
[311633406,1705273846166,-2000.0,0.0002843,2]
[311633407,1705273846175,-2000.0,0.0002844,2]
[311633408,1705273846184,-2000.0,0.0002845,2]
[311633410,1705273846193,-2000.0,0.0002846,2]
[311633412,1705273846202,-2000.0,0.0002847,2]
[311633413,1705273846211,-3204.777256,0.0002848,2]
[311633415,1705273846220,-762.67,0.00028492,2]
[311633417,1705273846229,-500.0,0.00028493,2]
[311633419,1705273846239,-500.0,0.00028493,2]
[311633421,1705273846251,-315.83931305,0.00028493,2]
[311633423,1705273846261,-500.0,0.00028493,2]
[311633425,1705273846270,-500.0,0.00028493,2]
[311633426,1705273846279,-500.0,0.00028493,2]
[311633427,1705273846288,-500.0,0.00028493,2]
[311633428,1705273846297,-1181.82,0.00028493,2]
[311633429,1705273846307,-1071.34,0.00028493,2]
[311633430,1705273846316,-2069.79,0.00028493,2]
[311633431,1705273846325,-500.0,0.00028493,2]
[311633432,1705273846334,-516.22,0.00028493,2]
[311633433,1705273846344,-500.0,0.00028493,2]
[311633434,1705273846354,-500.0,0.00028493,2]
[311633435,1705273846363,-741.73,0.00028493,2]
[311633437,1705273846376,-500.0,0.00028493,2]
[311633439,1705273846385,-595.24,0.00028493,2]
[311633441,1705273846394,-500.0,0.00028493,2]
[311633443,1705273846403,-1228.31,0.00028493,2]
[311633446,1705273846412,-655.83,0.00028493,2]
[311633447,1705273846421,-500.0,0.00028493,2]
[311633448,1705273846430,-882.38,0.00028493,2]
[311633449,1705273846440,-921.04,0.00028493,2]
[311633450,1705273846449,-500.0,0.00028493,2]
[311633451,1705273846458,-646.95,0.00028493,2]
[311633452,1705273846468,-500.0,0.00028493,2]
[311633453,1705273846477,-500.0,0.00028493,2]
[311633454,1705273846486,-641.89,0.00028493,2]
[311633455,1705273846498,-500.0,0.00028493,2]
[311633456,1705273846507,-421.0676265,0.00028493,2]
[311633457,1705273846516,-500.0,0.00028493,2]
[311633458,1705273846525,-500.0,0.00028493,2]
[311633459,1705273846534,-2152.1,0.00028493,2]
[311633461,1705273846544,-500.0,0.00028493,2]
[311633462,1705273846553,-500.0,0.00028493,2]
[311633463,1705273846564,-601.67,0.00028493,2]
[311633464,1705273846573,-500.0,0.00028493,2]
[311633465,1705273846584,-1457.05,0.00028493,2]
[311633466,1705273846594,-500.0,0.00028493,2]
[311633467,1705273846604,-500.0,0.00028493,2]
[311633468,1705273846614,-617.05,0.00028493,2]
[311633470,1705273846624,-1260.8,0.00028493,2]
[311633472,1705273846634,-774.21,0.00028493,2]
[311633474,1705273846643,-2445.63,0.00028493,2]
[311633476,1705273846653,-5888.37,0.00028493,2]
[311633478,1705273846663,-6560.83,0.00028493,2]
[311633480,1705273846673,-500.0,0.00028493,2]
[311633482,1705273846682,-500.0,0.00028493,2]
[311633484,1705273846693,-500.0,0.00028493,2]
[311633487,1705273846788,-500.0,0.00028493,2]
[311633488,1705273846798,-3365.49,0.00028493,2]
[311633489,1705273846808,-1077.85517274,0.00028493,2]
[311633490,1705273846821,-22359.39482726,0.00028493,2]
[311633491,1705273846831,-500.0,0.00028493,2]
[311633492,1705273846840,-500.0,0.00028493,2]
[311633493,1705273846850,-5069.34,0.00028493,2]
[311633494,1705273846859,-500.0,0.00028493,2]
[311633495,1705273846869,-715.5,0.00028493,2]
[311633496,1705273846880,-2024.58,0.00028493,2]
[311633497,1705273846890,-15264.76,0.00028493,2]
[311633498,1705273846900,-500.0,0.00028493,2]
[311633499,1705273846910,-2565.85,0.00028493,2]
[311633501,1705273846920,-500.0,0.00028493,2]
[311633503,1705273846930,-500.0,0.00028493,2]
[311633504,1705273846940,-3208.97997196,0.00028493,2]
[311633505,1705273847131,-3350.34002804,0.00028493,2]
[311633506,1705273847141,-500.0,0.00028493,2]
[311633507,1705273847150,-1133.15,0.00028493,2]
[311633508,1705273847160,-500.0,0.00028493,2]
[311633509,1705273847169,-1104.57,0.00028493,2]
[311633510,1705273847179,-790.19,0.00028493,2]
[311633511,1705273847189,-586.91,0.00028493,2]
[311633512,1705273847199,-1376.52,0.00028493,2]
[311633513,1705273847208,-500.0,0.00028493,2]
[311633514,1705273847218,-778.85,0.00028493,2]
[311633515,1705273847228,-1565.88,0.00028493,2]
[311633516,1705273847237,-500.0,0.00028493,2]
[311633517,1705273847248,-153.79240338,0.0002857,2]
[311633518,1705273847257,-500.0,0.00028589,7]
[311633519,1705273847266,-500.0,0.00028589,7]
[311633520,1705273847275,-500.0,0.00028589,7]
[311633521,1705273847283,-515.44,0.00028589,7]
[311633522,1705273847292,-156.01967901,0.00028639,2]
[311633523,1705273847301,-762.67,0.00028766,2]
[311633524,1705273847310,-500.0,0.00028767,2]
[311633525,1705273847319,-500.0,0.00028767,2]
[311633526,1705273847330,-500.0,0.00028767,2]
[311633527,1705273847339,-500.0,0.00028767,2]
[311633528,1705273847349,-500.0,0.00028767,2]
[311633529,1705273847361,-198.13084827,0.00028767,2]
[311633530,1705273847371,-1181.82,0.00028767,2]
[311633531,1705273847380,-1071.34,0.00028767,2]
[311633532,1705273847390,-2069.79,0.00028767,2]
[311633533,1705273847399,-500.0,0.00028767,2]
[311633534,1705273847409,-516.22,0.00028767,2]
[311633535,1705273847418,-500.0,0.00028767,2]
[311633536,1705273847428,-500.0,0.00028767,2]
[311633537,1705273847437,-741.73,0.00028767,2]
[311633538,1705273847447,-500.0,0.00028767,2]
[311633539,1705273847458,-595.24,0.00028767,2]
[311633540,1705273847467,-500.0,0.00028767,2]
[311633541,1705273847477,-155.0,0.00028767,2]
[311633542,1705273847486,-1228.31,0.00028767,2]
[311633543,1705273847498,-655.83,0.00028767,2]
[311633544,1705273847507,-500.0,0.00028767,2]
[311633545,1705273847517,-882.38,0.00028767,2]
[311633546,1705273847526,-921.04,0.00028767,2]
[311633547,1705273847535,-500.0,0.00028767,2]
[311633548,1705273847545,-646.95,0.00028767,2]
[311633549,1705273847554,-500.0,0.00028767,2]
[311633550,1705273847563,-500.0,0.00028767,2]
[311633551,1705273847572,-641.89,0.00028767,2]
[311633552,1705273847581,-500.0,0.00028767,2]
[311633553,1705273847591,-500.0,0.00028767,2]
[311633554,1705273847600,-500.0,0.00028767,2]
[311633555,1705273847611,-2152.1,0.00028767,2]
[311633556,1705273847620,-216.63150169,0.00028767,2]
[311633557,1705273847630,-500.0,0.00028767,2]
[311633558,1705273847639,-601.67,0.00028767,2]
[311633559,1705273847649,-500.0,0.00028767,2]
[311633560,1705273847658,-1457.05,0.00028767,2]
[311633561,1705273847668,-500.0,0.00028767,2]
[311633562,1705273847678,-617.05,0.00028767,2]
[311633563,1705273847687,-1260.8,0.00028767,2]
[311633564,1705273847697,-774.21,0.00028767,2]
[311633565,1705273847706,-2445.63,0.00028767,2]
[311633566,1705273847716,-5888.37,0.00028767,2]
[311633567,1705273847725,-6560.83,0.00028767,2]
[311633568,1705273847734,-500.0,0.00028767,2]
[311633569,1705273847744,-500.0,0.00028767,2]
[311633570,1705273847756,-500.0,0.00028767,2]
[311633571,1705273847765,-500.0,0.00028767,2]
[311633572,1705273847776,-3365.49,0.00028767,2]
[311633573,1705273847785,-23437.25,0.00028767,2]
[311633574,1705273847795,-500.0,0.00028767,2]
[311633575,1705273847804,-500.0,0.00028767,2]
[311633576,1705273847813,-5069.34,0.00028767,2]
[311633577,1705273847822,-500.0,0.00028767,2]
[311633578,1705273847832,-715.5,0.00028767,2]
[311633579,1705273847841,-2024.58,0.00028767,2]
[311633580,1705273847850,-15264.76,0.00028767,2]
[311633581,1705273847859,-500.0,0.00028767,2]
[311633582,1705273847870,-2565.85,0.00028767,2]
[311633583,1705273847880,-535.49818843,0.00028767,2]
[311633584,1705273847890,-360.84061127,0.00028767,2]
[311633585,1705273847899,-6559.32,0.00028767,2]
[311633586,1705273847909,-500.0,0.00028767,2]
[311633587,1705273847918,-1133.15,0.00028767,2]
[311633588,1705273847927,-500.0,0.00028767,2]
[311633589,1705273847937,-1104.57,0.00028767,2]
[311633590,1705273847946,-790.19,0.00028767,2]
[311633591,1705273847956,-586.91,0.00028767,2]
[311633592,1705273847965,-1376.52,0.00028767,2]
[311633593,1705273847975,-500.0,0.00028767,2]
[311633594,1705273847984,-778.85,0.00028767,2]
[311633595,1705273847994,-1565.88,0.00028767,2]
[311633596,1705273848008,-500.0,0.00028767,2]
[311633597,1705273848018,-32918.85806642,0.000288,2]
[311633598,1705273848027,-151.0,0.000288,2]
[311633599,1705273848036,-153.79240338,0.00028878,2]
[311633600,1705273848045,-462.0,0.000289,2]
[311633601,1705273848055,-153.79240338,0.00028932,2]
[311633602,1705273848064,-2305.37797556,0.00029,2]
[311633603,1705273848074,-607.593268,0.00029,2]
[311633604,1705273848083,-1500.0,0.00029,2]
[311633605,1705273848092,-607.593268,0.00029,2]
[311633606,1705273848101,-762.67,0.0002904,2]
[311633607,1705273848110,-8537.88,0.0002904,2]
[311633608,1705273848119,-8537.88,0.0002904,2]
[311633609,1705273848128,-8537.88,0.0002904,2]
[311633610,1705273848138,-8537.88,0.0002904,2]
[311633611,1705273848147,-8537.88,0.0002904,2]
[311633612,1705273848157,-8537.88,0.0002904,2]
[311633613,1705273848167,-8537.88,0.0002904,2]
[311633614,1705273848176,-500.0,0.00029041,2]
[311633615,1705273848186,-500.0,0.00029041,2]
[311633616,1705273848195,-500.0,0.00029041,2]
[311633617,1705273848205,-1181.82,0.00029041,2]
[311633618,1705273848214,-1071.34,0.00029041,2]
[311633619,1705273848223,-2069.79,0.00029041,2]
[311633620,1705273848232,-500.0,0.00029041,2]
[311633621,1705273848241,-516.22,0.00029041,2]
[311633622,1705273848254,-500.0,0.00029041,2]
[311633623,1705273848263,-500.0,0.00029041,2]
[311633624,1705273848272,-741.73,0.00029041,2]
[311633625,1705273848281,-500.0,0.00029041,2]
[311633626,1705273848290,-595.24,0.00029041,2]
[311633627,1705273848300,-527.04231411,0.00029041,2]
[311633628,1705273848310,-1228.31,0.00029041,2]
[311633629,1705273848319,-655.83,0.00029041,2]
[311633630,1705273848328,-500.0,0.00029041,2]
[311633631,1705273848338,-882.38,0.00029041,2]
[311633632,1705273848347,-921.04,0.00029041,2]
[311633633,1705273848359,-500.0,0.00029041,2]
[311633634,1705273848369,-646.95,0.00029041,2]
[311633635,1705273848378,-500.0,0.00029041,2]
[311633636,1705273848388,-500.0,0.00029041,2]
[311633637,1705273848397,-641.89,0.00029041,2]
[311633638,1705273848406,-500.0,0.00029041,2]
[311633639,1705273848416,-500.0,0.00029041,2]
[311633640,1705273848426,-500.0,0.00029041,2]
[311633641,1705273848435,-2152.1,0.00029041,2]
[311633642,1705273848445,-500.0,0.00029041,2]
[311633643,1705273848454,-601.67,0.00029041,2]
[311633644,1705273848464,-500.0,0.00029041,2]
[311633645,1705273848473,-1457.05,0.00029041,2]
[311633646,1705273848483,-500.0,0.00029041,2]
[311633647,1705273848562,-617.05,0.00029041,2]
[311633648,1705273848572,-1260.8,0.00029041,2]
[311633649,1705273848582,-774.21,0.00029041,2]
[311633650,1705273848591,-2445.63,0.00029041,2]
[311633651,1705273848600,-5888.37,0.00029041,2]
[311633652,1705273848609,-6560.83,0.00029041,2]
[311633653,1705273848619,-500.0,0.00029041,2]
[311633654,1705273848629,-500.0,0.00029041,2]
[311633655,1705273848638,-500.0,0.00029041,2]
[311633656,1705273848648,-500.0,0.00029041,2]
[311633657,1705273848657,-3365.49,0.00029041,2]
[311633658,1705273848666,-23437.25,0.00029041,2]
[311633659,1705273848676,-500.0,0.00029041,2]
[311633660,1705273848686,-500.0,0.00029041,2]
[311633661,1705273848695,-5069.34,0.00029041,2]
[311633662,1705273848705,-715.5,0.00029041,2]
[311633663,1705273848714,-500.0,0.00029041,2]
[311633664,1705273848723,-2024.58,0.00029041,2]
[311633665,1705273848732,-15264.76,0.00029041,2]
[311633666,1705273848742,-256.85603215,0.00029041,2]
[311633667,1705273848755,-2565.85,0.00029041,2]
[311633668,1705273848764,-6559.32,0.00029041,2]
[311633669,1705273848774,-500.0,0.00029041,2]
[311633670,1705273848783,-1133.15,0.00029041,2]
[311633671,1705273848794,-351.33057238,0.00029041,2]
[311633672,1705273848803,-1104.57,0.00029041,2]
[311633673,1705273848812,-790.19,0.00029041,2]
[311633674,1705273848822,-586.91,0.00029041,2]
[311633675,1705273848832,-1376.52,0.00029041,2]
[311633676,1705273848841,-500.0,0.00029041,2]
[311633677,1705273848851,-778.85,0.00029041,2]
[311633678,1705273848860,-1565.88,0.00029041,2]
[311633679,1705273848869,-500.0,0.00029041,2]
[311633680,1705273848879,-215.600695,0.00029041,2]
[311633681,1705273848889,-154.08472212,0.00029062,2]
[311633682,1705273848899,-760.2958624,0.00029077,3]
[311633683,1705273848908,-3579.40320256,0.00029077,3]
[311633684,1705273848918,-1809.29127696,0.00029077,5]
[311633685,1705273849086,-901.1793973,0.00027396,2]
[311633686,1705273849096,-500.0,0.00027397,2]
[311633687,1705273849105,-202.28089454,0.00027397,2]
[311633688,1705273849114,-412.16010931,0.0002764,2]
[311633689,1705273849126,-632.67317768,0.0002764,2]
[311633690,1705273849135,-500.0,0.00027671,2]
[311633691,1705273849145,-500.0,0.00027945,2]
[311633692,1705273849155,-500.0,0.00028219,2]
[311633693,1705273849165,-500.0,0.00028493,2]
[311633694,1705273849174,-1574.41849478,0.00029039,2]
[311633745,1705275031869,-155.04031048,0.00024864,4]
[311633747,1705275031879,-323.05791253,0.00024865,2]
[311633749,1705275031888,-1044.83328699,0.00025,2]
[311633751,1705275031898,-166.666666,0.00025363,2]
[311633753,1705275031908,-2832.901824,0.00025898,2]
[311633755,1705275031922,-1071.7915834,0.00025898,2]
[311633757,1705275031932,-155.09545392,0.00026941,2]
[311633759,1705275031941,-1500.0,0.00027,2]
[311633760,1705275031951,-818.08,0.00027387,3]
[311633761,1705275031960,-2705.73877423,0.00027393,2]
[311633762,1705275031972,-3749.88227316,0.00027393,2]
[311633763,1705275031981,-242.67449373,0.00027395,2]
[311633764,1705275031991,-126.75180757,0.00027397,2]
[311633765,1705275032003,-373.24819243,0.00027397,2]
[311633766,1705275032013,-316.46077527,0.00027397,2]
[311633881,1705275037898,-327.20580692,0.00027397,2]
[311633883,1705275037907,-500.0,0.00027397,2]
[311633885,1705275037919,-500.0,0.00027397,2]
[311633887,1705275037929,-500.0,0.00027397,2]
[311633889,1705275037938,-500.0,0.00027397,2]
[311633891,1705275037948,-500.0,0.00027397,2]
[311633893,1705275037957,-523.44560558,0.00027397,2]
[311633895,1705275037966,-500.0,0.00027397,2]
[311633897,1705275037975,-819.0,0.00027397,2]
[311633899,1705275037985,-500.0,0.00027397,2]
[311633901,1705275037994,-500.0,0.00027397,2]
[311633903,1705275038003,-614.02729468,0.00027397,2]
[311633905,1705275038012,-500.0,0.00027397,2]
[311633907,1705275038021,-500.0,0.00027397,2]
[311633909,1705275038030,-500.0,0.00027397,2]
[311633911,1705275038039,-500.0,0.00027397,2]
[311633913,1705275038049,-500.0,0.00027397,2]
[311633915,1705275038058,-694.45,0.00027397,2]
[311633917,1705275038067,-500.0,0.00027397,2]
[311633919,1705275038077,-500.0,0.00027397,2]
[311633921,1705275038085,-673.51,0.00027397,2]
[311633923,1705275038095,-500.0,0.00027397,2]
[311633925,1705275038104,-500.0,0.00027397,2]
[311633927,1705275038113,-500.0,0.00027397,2]
[311633928,1705275038122,-500.0,0.00027397,2]
[311633931,1705275038135,-500.0,0.00027397,2]
[311633932,1705275038145,-500.0,0.00027397,2]
[311633935,1705275038154,-500.0,0.00027397,2]
[311633936,1705275038163,-521.1942348,0.00027397,2]
[311633939,1705275038176,-500.0,0.00027397,2]
[311633941,1705275038186,-500.0,0.00027397,2]
[311633943,1705275038195,-252.49581214,0.00027397,2]
[311633945,1705275038206,-500.0,0.00027397,2]
[311633946,1705275038216,-500.0,0.00027397,2]
[311633947,1705275038225,-500.0,0.00027397,2]